bitfinex/quotes_ETHUSD_20250708
["timestamp","ask_amount","ask_price","bid_price","bid_amount"]
[1751993995250,11.44133304,2579.9,2579.8,0.001]
[1751993995456,21.77696118,2579.9,2579.8,0.001]
[1751993996345,22.14036707,2579.9,2579.8,0.001]
[1751993996549,23.57833695,2579.9,2579.8,0.001]
[1751993997352,16.84352313,2579.9,2579.8,0.001]
[1751993997950,12.96740391,2579.9,2579.8,0.001]
[1751993998154,15.40555325,2579.9,2579.8,0.001]
[1751993998381,21.32355325,2579.9,2579.8,0.001]
[1751993998549,21.51715325,2579.9,2579.8,0.001]
[1751993998871,15.59915325,2579.9,2579.8,0.001]
[1751993999080,21.51715325,2579.9,2579.8,0.001]
[1751993999456,21.51656642,2579.9,2579.8,0.001]
[1751994000261,0.1936,2579.9,2579.8,0.001]
[1751994000473,0.55673858,2579.9,2579.8,0.001]
[1751994000672,6.28113858,2579.9,2579.8,0.58234064]
[1751994001075,6.28113858,2579.9,2579.8,0.1946]
[1751994005164,6.28113858,2579.9,2579.8,4.07086947]
[1751994005366,6.28113858,2579.9,2579.8,10.80568329]
[1751994005569,6.28113858,2579.9,2579.8,4.07086947]
[1751994005955,10.15726236,2579.9,2579.8,0.001]
[1751994006191,12.15061698,2579.9,2579.8,0.001]
[1751994006702,23.50511698,2579.9,2579.8,0.001]
[1751994008001,15.20167001,2579.6,2579.5,0.001]
[1751994008208,28.53425702,2579.6,2579.5,0.001]
[1751994009699,28.21762697,2579.6,2579.5,0.001]
[1751994009994,28.86650228,2579.6,2579.5,0.001]
[1751994010175,28.86627934,2579.6,2579.5,0.001]
[1751994010677,22.13146552,2579.6,2579.5,0.001]
[1751994011098,22.45145985,2579.6,2579.5,0.001]
[1751994012577,22.45131502,2579.6,2579.5,0.001]
[1751994013110,22.45107393,2579.6,2579.5,0.001]
[1751994013964,22.13122443,2579.6,2579.5,0.001]
[1751994018091,22.44732079,2579.6,2579.5,0.001]
[1751994019308,3.87732154,2579.1,2579.0,0.001]
[1751994019519,10.20746716,2579.1,2579.0,0.001]
[1751994019828,10.15900065,2579.1,2579.0,0.001]
[1751994020392,11.64212522,2579.1,2579.0,0.001]
[1751994020593,10.15900065,2579.1,2579.0,0.001]
[1751994024146,20.15900065,2579.1,2579.0,0.001]
[1751994027301,20.15884259,2579.1,2579.0,0.001]
[1751994029431,16.28147998,2579.1,2579.0,0.7931]
[1751994030130,6.28147998,2579.1,2579.0,0.7931]
[1751994030506,0.36247998,2579.1,2579.0,0.7931]
[1751994030700,5.919,2579.2,2579.0,8.42152841]
[1751994030917,5.919,2579.2,2579.1,0.1936]
[1751994031122,6.2814387,2579.2,2579.1,0.1936]
[1751994031447,5.919,2579.2,2579.1,0.1936]
[1751994033530,6.28174287,2579.2,2579.1,0.1936]
[1751994034141,6.2818769,2579.2,2579.1,0.1936]
[1751994034563,6.28187883,2579.2,2579.1,0.1936]
[1751994036274,6.2821633,2579.2,2579.1,0.1936]
[1751994039167,6.28222225,2579.2,2579.1,0.1936]
[1751994039354,6.28222225,2579.2,2579.0,0.7931]
[1751994039355,7.29815285,2579.2,2579.0,0.7931]
[1751994039561,5.919,2579.2,2579.0,0.7931]
[1751994039756,5.917,2579.1,2579.0,4.67043945]
[1751994040478,5.917,2579.1,2579.0,4.86403945]
[1751994042568,10.1936,2579.6,2579.2,3.87711026]
[1751994042764,6.28010875,2579.5,2579.2,3.87710146]
[1751994043071,5.965459,2579.5,2579.0,4.86405165]
[1751994043863,0.36306969,2579.4,2579.0,4.86405165]
[1751994044247,5.917,2579.3,2579.0,4.86405165]
[1751994044460,3.87723002,2579.2,2579.0,0.001]
[1751994044667,5.96546651,2579.1,2579.0,0.001]
[1751994048989,5.917,2579.1,2579.0,0.001]
[1751994049396,0.7752,2579.8,2579.0,0.8257]
[1751994049698,9.84228576,2579.5,2579.0,4.89677188]
[1751994049996,9.79382676,2579.5,2579.1,3.87731343]
[1751994050200,0.04846088,2579.4,2579.1,3.87731343]
[1751994050502,5.917,2579.3,2579.1,3.87731343]
[1751994051988,5.917,2579.2,2579.1,3.87731343]
[1751994053302,0.048459,2579.5,2579.1,0.87740853]
[1751994053513,0.1936,2579.6,2579.4,0.833]
[1751994053712,16.27896626,2579.5,2579.4,4.70987059]
[1751994054008,6.27896626,2579.5,2579.4,4.70987059]
[1751994054502,5.916,2579.5,2579.4,0.833]
[1751994055003,5.916,2579.5,2579.4,4.70987059]
[1751994056912,6.27900065,2579.5,2579.4,4.70987059]
[1751994058277,6.27906314,2579.5,2579.4,4.70987059]
[1751994058480,0.36306314,2579.5,2579.4,4.70987059]
[1751994058812,6.27906314,2579.5,2579.4,4.70987059]
[1751994059017,6.27906314,2579.5,2579.4,0.833]
[1751994059525,0.36306314,2579.5,2579.4,4.70987059]
[1751994059731,6.27906314,2579.5,2579.4,4.90347059]
[1751994060795,0.36306314,2579.5,2579.4,5.78151345]
[1751994061000,9.314,2580.0,2579.8,3.87623725]
[1751994061197,0.36319527,2579.9,2579.8,3.87623725]
[1751994061514,6.27819527,2579.9,2579.8,3.87623725]
[1751994061706,0.36319527,2579.9,2579.8,3.87623725]
[1751994061941,0.36319527,2579.9,2579.8,4.70573725]
[1751994062240,0.002,2580.3,2580.0,3.87588072]
[1751994062241,0.3629558,2580.2,2580.0,3.87588072]
[1751994062542,3.87596899,2580.0,2579.9,0.1936]
[1751994062741,4.2389226,2580.0,2579.6,0.8295]
[1751994063043,6.3264051,2579.9,2579.6,4.07015285]
[1751994063335,0.36295361,2579.8,2579.7,3.87640041]
[1751994063698,5.915,2579.8,2579.7,3.87640041]
[1751994064662,0.24204773,2580.1,2579.8,3.8762642]
[1751994064936,6.27783956,2580.0,2579.8,3.8762642]
[1751994065137,5.915,2580.0,2579.8,3.8762642]
[1751994065337,5.915,2580.0,2579.7,3.87635891]
[1751994066043,5.915,2580.0,2579.8,3.87626811]
[1751994066238,0.24204773,2580.1,2579.6,4.07016728]
[1751994066239,0.24204773,2580.1,2579.9,3.87603033]
[1751994066551,10.002,2580.3,2579.9,3.87603033]
[1751994066552,6.2777236,2580.0,2579.9,4.06963033]
[1751994066750,6.2777236,2580.0,2579.9,0.1936]
[1751994067508,6.27768393,2580.0,2579.9,0.1936]
[1751994069251,0.36268393,2580.0,2579.9,0.1936]
[1751994069411,5.914,2580.0,2579.9,4.06971922]
[1751994069625,5.914,2580.0,2579.9,4.47862941]
[1751994071767,5.914,2580.0,2579.9,0.1936]
[1751994072062,5.914,2580.0,2579.6,0.79708341]
[1751994072245,5.914,2580.0,2579.7,4.06994343]
[1751994072446,5.914,2580.0,2579.8,3.87626731]
[1751994072647,5.914,2580.0,2579.9,3.87611922]
[1751994073441,5.914,2580.0,2579.8,3.87619488]
[1751994073661,5.914,2580.0,2579.9,3.87611922]
[1751994073868,5.914,2580.0,2579.9,4.67063828]
[1751994074167,5.914,2580.0,2579.9,4.86423828]
[1751994074965,5.96244961,2580.0,2579.6,4.65418631]
[1751994075148,5.914,2580.0,2579.7,4.06995258]
[1751994075671,5.914,2580.0,2579.8,3.87626273]
[1751994076759,0.04844773,2580.1,2579.8,3.87626273]
[1751994077079,5.913,2580.1,2579.8,3.87618158]
[1751994078136,5.913,2580.1,2579.9,3.87603439]
[1751994078345,5.913,2580.1,2580.0,3.87596899]
[1751994079165,6.27557534,2580.1,2580.0,3.87596899]
[1751994079646,6.27557534,2580.1,2579.9,3.8760428]
[1751994079835,5.913,2580.1,2579.9,3.8760428]
[1751994080662,0.1936,2580.2,2580.1,3.87581876]
[1751994080830,0.05044397,2580.3,2580.2,3.87566855]
[1751994080831,0.002,2580.3,2580.2,3.87566855]
[1751994081162,6.27759178,2580.3,2580.1,4.67465041]
[1751994081464,0.36259178,2580.2,2580.1,3.87581876]
[1751994082846,5.915,2580.3,2580.2,3.87566855]
[1751994083146,6.27767207,2580.3,2580.2,3.87566855]
[1751994083864,6.27767207,2580.3,2580.1,3.87573199]
[1751994084070,5.915,2580.3,2580.1,3.87573199]
[1751994084432,5.915,2580.3,2580.2,3.87566855]
[1751994084761,6.27776973,2580.3,2580.2,3.87566855]
[1751994084970,6.27776973,2580.3,2580.1,3.87573242]
[1751994085166,5.915,2580.3,2580.1,3.87573242]
[1751994085747,5.915,2580.3,2580.2,3.87566855]
[1751994086073,6.27781286,2580.3,2580.2,3.87566855]
[1751994086936,0.36481286,2580.3,2580.2,3.87566855]
[1751994087132,5.914,2580.3,2580.2,4.67017656]
[1751994087360,5.914,2580.3,2580.2,3.87566855]
[1751994087361,0.002,2580.3,2580.2,3.87566855]
[1751994087551,5.914,2580.3,2580.2,4.08863919]
[1751994087745,0.002,2580.3,2580.2,4.06926855]
[1751994088877,0.002,2580.3,2580.2,4.85603919]
[1751994090140,0.002,2580.3,2580.2,4.83666855]
[1751994090340,0.002,2580.3,2580.2,5.70791528]
[1751994090736,0.002,2580.3,2580.2,5.72728592]
[1751994090970,0.002,2580.3,2580.2,1.83224673]
[1751994091180,0.002,2580.3,2580.2,0.1936]
[1751994091341,0.002,2580.3,2580.2,4.06926855]
[1751994092572,0.002,2580.3,2580.2,10.80408237]
[1751994092750,1e-08,2580.4,2580.3,4.64841835]
[1751994092949,1e-08,2580.4,2580.3,12.50414704]
[1751994093166,1e-08,2580.4,2580.3,23.82704704]
[1751994094672,0.002,2580.6,2580.3,23.82704704]
[1751994094673,1e-08,2580.6,2580.5,4.64461798]
[1751994094838,1e-08,2580.6,2580.5,17.50339118]
[1751994095041,1e-08,2580.6,2580.5,21.33292428]
[1751994096975,1e-08,2580.6,2580.5,8.68711046]
[1751994097276,1e-08,2580.6,2580.5,14.59711046]
[1751994098972,1e-08,2580.6,2580.5,8.68711046]
[1751994099139,1e-08,2580.6,2580.5,4.83821798]
[1751994099477,1e-08,2580.6,2580.5,4.85757736]
[1751994099693,1e-08,2580.6,2580.5,0.1936]
[1751994099853,1e-08,2580.6,2580.1,0.29833131]
[1751994099854,3.87566855,2580.2,2580.1,0.29833131]
[1751994100056,4.64726855,2580.2,2580.1,0.29833131]
[1751994100285,4.8893144,2580.2,2580.1,0.29833131]
[1751994100483,4.8893144,2580.2,2580.1,0.001]
[1751994101278,1.01364585,2580.2,2580.1,0.001]
[1751994101456,1e-08,2580.6,2580.1,0.1946]
[1751994101457,10.0,2580.4,2580.1,0.1946]
[1751994101658,0.1936,2580.5,2580.1,4.07034087]
[1751994101867,0.24204022,2580.5,2580.1,4.07034087]
[1751994102292,0.24204022,2580.5,2580.1,0.1946]
[1751994102500,0.24204022,2580.5,2580.2,3.87565243]
[1751994103886,0.24204022,2580.5,2580.1,4.07036332]
[1751994105364,0.24204022,2580.5,2580.1,0.1946]
[1751994105572,3.87537386,2580.4,2580.1,0.1946]
[1751994105914,4.69916855,2580.2,2580.1,0.001]
[1751994106084,4.89276855,2580.2,2580.1,0.001]
[1751994107406,4.9412144,2580.2,2580.1,0.001]
[1751994108971,1.06554585,2580.2,2580.1,0.001]
[1751994109314,1.0171,2580.2,2580.1,0.001]
[1751994110285,1.08887421,2580.5,2580.1,0.001]
[1751994110583,10.2420421,2580.4,2580.1,0.001]
[1751994110787,10.1936,2580.4,2580.1,0.001]
[1751994111196,0.1936,2580.4,2580.1,0.001]
[1751994111500,0.7698,2580.5,2580.1,4.07037719]
[1751994111681,0.7698,2580.5,2580.2,3.87553167]
[1751994113903,4.64503446,2580.5,2580.1,0.68209493]
[1751994114103,4.64503446,2580.5,2580.1,0.1946]
[1751994114292,4.64503446,2580.5,2580.1,4.07039249]
[1751994114680,0.7698,2580.5,2580.1,0.1946]
[1751994114980,0.7698,2580.5,2580.1,0.001]
[1751994114981,3.8755962,2580.3,2580.1,0.001]
[1751994115185,3.9241144,2580.2,2580.1,0.001]
[1751994115490,5.69663411,2580.2,2580.1,0.001]
[1751994117081,15.69663411,2580.2,2580.1,0.001]
[1751994117411,28.09940208,2580.2,2580.1,0.001]
[1751994118430,21.36458826,2580.2,2580.1,0.001]
[1751994119716,5.91,2580.2,2580.1,0.001]
[1751994120251,10.0,2580.3,2580.1,0.001]
[1751994120452,19.78553356,2580.3,2580.1,0.001]
[1751994121137,5.91,2580.3,2580.1,0.001]
[1751994121342,9.83397612,2580.3,2580.1,0.001]
[1751994121553,9.78553215,2580.3,2580.1,0.001]
[1751994121713,3.9241144,2580.2,2580.1,0.001]
[1751994122147,14.7434144,2580.2,2580.1,0.001]
[1751994122350,14.69496855,2580.2,2580.1,0.001]
[1751994123366,15.24496855,2580.2,2580.1,0.001]
[1751994127530,14.69496855,2580.2,2580.1,0.001]
[1751994131472,0.8112,2580.4,2580.1,0.001]
[1751994131636,0.1936,2580.3,2580.1,0.001]
[1751994132353,5.9584421,2580.4,2580.1,0.001]
[1751994132354,5.9584421,2580.4,2580.2,3.87566855]
[1751994132554,5.9584421,2580.4,2580.1,4.07034989]
[1751994132555,0.0484421,2580.4,2580.1,4.07034989]
[1751994132757,5.91,2580.4,2580.2,0.87711966]
[1751994133783,0.19360001,2580.6,2580.2,0.87711966]
[1751994133944,0.19360001,2580.6,2580.2,4.7526999]
[1751994133945,5.91,2580.5,2580.2,4.7526999]
[1751994134274,10.24203835,2580.6,2580.2,4.7526999]
[1751994134275,1e-08,2580.6,2580.4,3.87536815]
[1751994134575,1e-08,2580.6,2580.5,3.87521798]
[1751994135371,1e-08,2580.6,2580.4,4.83819864]
[1751994136091,1e-08,2580.6,2580.5,3.87521798]
[1751994136277,1e-08,2580.6,2580.5,4.06881798]
[1751994136596,1e-08,2580.6,2580.5,5.03832964]
[1751994138060,1e-08,2580.6,2580.5,5.05768902]
[1751994138258,1e-08,2580.6,2580.5,5.86448902]
[1751994140587,1e-08,2580.6,2580.5,1.96991166]
[1751994140768,1e-08,2580.6,2580.5,4.06981798]
[1751994141063,1e-08,2580.6,2580.5,0.1946]
[1751994141267,4.75180616,2580.6,2580.5,0.001]
[1751994141761,0.87673835,2580.6,2580.5,0.001]
[1751994141960,4.75180616,2580.6,2580.5,0.001]
[1751994142184,5.64100654,2580.6,2580.5,0.001]
[1751994142386,1.76593873,2580.6,2580.5,0.001]
[1751994142668,0.87673835,2580.6,2580.5,0.001]
[1751994143375,0.04843835,2580.6,2580.5,0.001]
[1751994143907,0.04843835,2580.6,2580.5,3.87621798]
[1751994144068,1e-08,2580.6,2580.5,3.87621798]
[1751994144272,1e-08,2580.6,2580.5,4.06981798]
[1751994144571,1e-08,2580.6,2580.5,0.99104629]
[1751994144782,1e-08,2580.6,2580.5,4.86626427]
[1751994146079,1e-08,2580.6,2580.5,5.64786427]
[1751994146284,1e-08,2580.6,2580.5,5.66722365]
[1751994148024,1e-08,2580.6,2580.5,11.57522365]
[1751994148320,1e-08,2580.6,2580.5,11.55586427]
[1751994149938,1e-08,2580.6,2580.5,5.64786427]
[1751994150138,1e-08,2580.6,2580.5,11.55586427]
[1751994152709,1e-08,2580.6,2580.5,22.07185043]
[1751994152946,1e-08,2580.6,2580.5,11.55586427]
[1751994154046,1e-08,2580.6,2580.5,5.64786427]
[1751994154213,1e-08,2580.6,2580.5,11.55486427]
[1751994157232,1e-08,2580.6,2580.5,5.64786427]
[1751994157438,1e-08,2580.6,2580.5,11.57422365]
[1751994157639,1e-08,2580.6,2580.5,11.55486427]
[1751994160248,1e-08,2580.6,2580.5,5.64786427]
[1751994160465,1e-08,2580.6,2580.5,4.86626427]
[1751994160667,1e-08,2580.6,2580.5,10.77326427]
[1751994163263,1e-08,2580.6,2580.5,4.86626427]
[1751994163485,1e-08,2580.6,2580.5,9.97681798]
[1751994163660,0.84223835,2580.6,2580.5,0.001]
[1751994163856,4.66886782,2580.6,2580.5,0.001]
[1751994164049,0.79380001,2580.6,2580.5,0.001]
[1751994164250,1.67953037,2580.6,2580.5,0.001]
[1751994165797,5.55459818,2580.6,2580.5,0.001]
[1751994166173,5.60303652,2580.6,2580.5,0.001]
[1751994167584,5.60893652,2580.6,2580.5,0.001]
[1751994167962,16.15893652,2580.6,2580.5,0.001]
[1751994168190,16.11049818,2580.6,2580.5,0.001]
[1751994168657,5.24316855,2580.2,2580.1,0.001]
[1751994169001,22.44488392,2580.2,2580.1,0.001]
[1751994169208,22.39643807,2580.2,2580.1,0.001]
[1751994169503,21.84643807,2580.2,2580.1,0.001]
[1751994169922,12.06376952,2580.2,2580.1,0.001]
[1751994170132,10.8175,2580.2,2580.1,0.001]
[1751994170429,4.69688171,2580.4,2580.1,0.1946]
[1751994170622,4.74532381,2580.4,2580.1,0.1946]
[1751994171322,0.8699421,2580.4,2580.1,0.1946]
[1751994171523,4.74531747,2580.4,2580.1,0.1946]
[1751994172025,0.8699421,2580.4,2580.1,4.07040962]
[1751994172427,0.8215,2580.4,2580.2,3.87566238]
[1751994172595,0.8215,2580.4,2580.1,4.0704042]
[1751994172596,0.1936,2580.5,2580.1,4.07032682]
[1751994172929,4.0688206,2580.5,2580.1,0.1946]
[1751994173489,0.1936,2580.5,2580.1,0.1946]
[1751994173715,3.87566855,2580.2,2580.1,0.1946]
[1751994173918,4.39588547,2580.2,2580.1,0.001]
[1751994174321,14.39588547,2580.2,2580.1,0.001]
[1751994174519,14.34743962,2580.2,2580.1,0.001]
[1751994176253,15.15243962,2580.2,2580.1,0.001]
[1751994184481,10.0,2580.2,2580.1,0.001]
[1751994184664,19.78466855,2580.2,2580.1,0.001]
[1751994185045,15.909,2580.2,2580.1,0.001]
[1751994185248,19.78466855,2580.2,2580.1,0.001]
[1751994185450,15.909,2580.2,2580.1,0.001]
[1751994185671,19.78466855,2580.2,2580.1,0.001]
[1751994186071,10.0,2580.2,2580.1,0.001]
[1751994186459,15.909,2580.2,2580.1,0.001]
[1751994186829,19.78466855,2580.2,2580.1,0.001]
[1751994187485,15.909,2580.2,2580.1,0.001]
[1751994188248,19.78466855,2580.2,2580.1,0.001]
[1751994188490,15.909,2580.2,2580.1,0.001]
[1751994188650,10.0,2580.2,2580.1,0.001]
[1751994188851,5.909,2580.2,2580.1,0.001]
[1751994190285,0.1936,2580.3,2580.1,0.001]
[1751994190493,5.909,2580.2,2580.1,0.001]
[1751994192977,5.909,2580.2,2580.1,3.87681876]
[1751994193191,5.909,2580.2,2580.1,0.001]
[1751994193692,9.78466855,2580.2,2580.1,0.001]
[1751994194092,5.909,2580.2,2580.1,0.001]
[1751994194284,10.54466855,2580.2,2580.1,0.001]
[1751994195111,6.669,2580.2,2580.1,0.001]
[1751994195297,10.5931144,2580.2,2580.1,0.001]
[1751994195496,10.54466855,2580.2,2580.1,0.001]
[1751994195824,6.669,2580.2,2580.1,0.001]
[1751994196025,6.71744585,2580.2,2580.1,0.001]
[1751994196822,10.5931144,2580.2,2580.1,0.001]
[1751994197121,10.54466855,2580.2,2580.1,0.001]
[1751994200391,0.76,2580.2,2580.1,0.001]
[1751994200612,0.04844397,2580.3,2580.1,0.001]
[1751994200812,5.908,2580.2,2580.1,0.001]
[1751994201144,0.1936,2580.3,2580.1,0.001]
[1751994201311,5.908,2580.3,2580.2,3.87566855]
[1751994201634,0.0484421,2580.4,2580.1,0.1946]
[1751994201986,6.7505421,2580.4,2580.1,0.001]
[1751994202201,4.06926855,2580.2,2580.1,0.001]
[1751994202437,10.0257144,2580.2,2580.1,0.001]
[1751994202630,9.97726855,2580.2,2580.1,0.001]
[1751994202933,6.1016,2580.2,2580.1,0.001]
[1751994203137,10.0257144,2580.2,2580.1,0.001]
[1751994203308,9.97726855,2580.2,2580.1,0.001]
[1751994205210,10.80296855,2580.2,2580.1,0.001]
[1751994205618,11.16620139,2580.2,2580.1,0.001]
[1751994205845,10.80296855,2580.2,2580.1,0.001]
[1751994207307,1.0193,2580.2,2580.1,0.001]
[1751994207538,6.1016,2580.2,2580.1,0.001]
[1751994207836,6.1016,2580.2,2580.1,3.87681876]
[1751994208037,0.002,2580.5,2580.3,3.87549142]
[1751994208245,0.002,2580.5,2580.2,0.8162]
[1751994208419,0.002,2580.5,2580.4,3.87536815]
[1751994208622,0.002,2580.5,2580.4,4.06896815]
[1751994208928,0.002,2580.5,2580.4,4.94697065]
[1751994214164,0.002,2580.5,2580.4,5.72013378]
[1751994216060,0.002,2580.5,2580.4,11.62813378]
[1751994216245,0.002,2580.5,2580.4,11.60877065]
[1751994218534,0.002,2580.5,2580.4,11.60777065]
[1751994218732,1e-08,2580.7,2580.6,15.24266781]
[1751994218963,1e-08,2580.7,2580.6,29.60754645]
[1751994219176,1e-08,2580.7,2580.6,37.81507927]
[1751994219533,1e-08,2580.7,2580.6,35.52154645]
[1751994220858,0.002,2580.9,2580.6,35.52154645]
[1751994220859,1e-08,2580.9,2580.8,14.63386751]
[1751994221170,1e-08,2580.9,2580.8,20.54786751]
[1751994221378,1e-08,2580.9,2580.8,24.39675999]
[1751994221575,1e-08,2580.9,2580.8,24.94675999]
[1751994222278,1e-08,2580.9,2580.8,24.94375999]
[1751994222954,1e-08,2580.9,2580.8,18.48275999]
[1751994223141,1e-08,2580.9,2580.8,24.39575999]
[1751994226444,1e-08,2580.9,2580.8,18.48275999]
[1751994226643,1e-08,2580.9,2580.8,24.39475999]
[1751994227188,1e-08,2580.9,2580.8,18.48275999]
[1751994227355,1e-08,2580.9,2580.8,14.63386751]
[1751994227559,1e-08,2580.9,2580.8,10.54486751]
[1751994228778,1e-08,2580.9,2580.8,10.73846751]
[1751994230386,0.0736752,2581.6,2581.5,3.87371683]
[1751994230543,0.0736752,2581.6,2581.5,9.80603868]
[1751994230747,0.0736752,2581.6,2581.5,9.98031683]
[1751994232469,0.0736752,2581.6,2581.5,11.44444212]
[1751994236455,0.0736752,2581.6,2581.5,12.25594212]
[1751994236989,0.0736752,2581.6,2581.5,12.54889314]
[1751994237875,4.06575729,2582.6,2581.5,12.54889314]
[1751994237876,0.1936,2582.6,2582.5,3.87221684]
[1751994238196,0.002,2582.7,2582.6,3.8720669]
[1751994238368,0.002,2582.7,2582.6,3.89134749]
[1751994239351,1e-08,2582.7,2582.6,5.20874749]
[1751994239661,1e-08,2582.7,2582.6,15.20874749]
[1751994239866,1e-08,2582.7,2582.6,24.95735938]
[1751994243959,1e-08,2582.7,2582.6,19.03835938]
[1751994244363,1e-08,2582.7,2582.6,24.95735938]
[1751994245087,0.0716752,2583.3,2582.6,24.95735938]
[1751994245088,1e-08,2583.3,2583.2,4.42116754]
[1751994245272,1e-08,2583.3,2583.2,32.10502857]
[1751994245470,1e-08,2583.3,2583.2,32.08577045]
[1751994245693,1e-08,2583.3,2583.2,32.37901117]
[1751994246094,1e-08,2583.3,2583.2,32.38501117]
[1751994246694,1e-08,2583.3,2583.2,21.02578429]
[1751994246902,1e-08,2583.3,2583.2,21.57578429]
[1751994247389,1e-08,2583.3,2583.2,15.65078429]
[1751994247589,1e-08,2583.3,2583.2,21.02778429]
[1751994247993,1e-08,2583.3,2583.2,21.22058429]
[1751994249006,1e-08,2583.3,2583.2,32.28657045]
[1751994251174,1e-08,2583.3,2583.2,26.35957045]
[1751994251403,1e-08,2583.3,2583.2,32.28557045]
[1751994252922,1e-08,2583.3,2583.2,15.84358429]
[1751994253125,1e-08,2583.3,2583.2,21.76858429]
[1751994253524,1e-08,2583.3,2583.2,15.84358429]
[1751994253725,1e-08,2583.3,2583.2,21.22458429]
[1751994254210,1e-08,2583.3,2583.2,10.43708429]
[1751994254389,1e-08,2583.3,2583.2,20.43708429]
[1751994255134,1e-08,2583.3,2583.2,30.95307045]
[1751994255287,1e-08,2583.3,2583.2,32.25707045]
[1751994255494,1e-08,2583.3,2583.2,21.74108429]
[1751994257798,1e-08,2583.3,2583.2,15.81008429]
[1751994258000,1e-08,2583.3,2583.2,25.77607045]
[1751994258413,1e-08,2583.3,2583.2,20.43608429]
[1751994258615,1e-08,2583.3,2583.2,30.95207045]
[1751994258988,1e-08,2583.3,2583.2,32.29737045]
[1751994261827,1e-08,2583.3,2583.2,32.30437045]
[1751994263332,1e-08,2583.3,2583.2,15.85138429]
[1751994263509,1e-08,2583.3,2583.2,21.78838429]
[1751994265198,1e-08,2583.3,2583.2,15.85138429]
[1751994265394,1e-08,2583.3,2583.2,21.23538429]
[1751994265593,1e-08,2583.3,2583.2,20.44008429]
[1751994266299,1e-08,2583.3,2583.2,14.50608429]
[1751994266727,1e-08,2583.3,2583.2,10.43908429]
[1751994266932,1e-08,2583.3,2583.2,20.43908429]
[1751994267100,1e-08,2583.3,2583.2,4.50608429]
[1751994267299,1e-08,2583.3,2583.2,20.01722566]
[1751994267533,1e-08,2583.3,2583.2,19.99796754]
[1751994267830,1e-08,2583.3,2583.2,20.35402306]
[1751994268917,1e-08,2583.3,2583.2,19.99696754]
[1751994271125,1e-08,2583.3,2583.2,19.99996754]
[1751994271323,1e-08,2583.3,2583.2,23.6680455]
[1751994272545,1e-08,2583.3,2583.2,17.7320455]
[1751994272848,1e-08,2583.3,2583.2,23.6690455]
[1751994274813,1e-08,2583.3,2583.2,24.4637455]
[1751994275019,1e-08,2583.3,2583.2,25.0137455]
[1751994275242,1e-08,2583.3,2583.2,27.30727832]
[1751994276125,1e-08,2583.3,2583.2,37.82326448]
[1751994276326,1e-08,2583.3,2583.2,38.97003089]
[1751994278749,1e-08,2583.3,2583.2,27.90004473]
[1751994279131,1e-08,2583.3,2583.2,24.4597455]
[1751994279339,1e-08,2583.3,2583.2,27.90004473]
[1751994282573,1e-08,2583.3,2583.2,24.4597455]
[1751994283368,1e-08,2583.3,2583.2,27.09738812]
[1751994283830,1e-08,2583.3,2583.2,23.6620455]
[1751994284031,1e-08,2583.3,2583.2,17.7320455]
[1751994284340,1e-08,2583.3,2583.2,23.6600455]
[1751994286465,1e-08,2583.3,2583.2,27.09538812]
[1751994286761,1e-08,2583.3,2583.2,24.9699455]
[1751994293586,0.0462737,2584.0,2583.9,13.87011881]
[1751994293587,1e-08,2584.0,2583.9,13.87011881]
[1751994293793,1e-08,2584.0,2583.9,21.64379433]
[1751994293966,1e-08,2584.0,2583.9,21.83659433]
[1751994295697,0.81270001,2584.0,2583.9,21.83759433]
[1751994297679,0.81270001,2584.0,2583.9,15.91459433]
[1751994297901,0.81270001,2584.0,2583.9,4.06291881]
[1751994298073,0.81270001,2584.0,2583.9,9.98391881]
[1751994298799,0.81270001,2584.0,2583.9,10.34137721]
[1751994299996,0.81270001,2584.0,2583.9,10.34337721]
[1751994300355,1e-08,2584.0,2583.9,10.34337721]
[1751994300558,1e-08,2584.0,2583.9,23.04514447]
[1751994302719,11.57570391,2587.5,2587.4,3.86488366]
[1751994302871,0.7517,2588.7,2587.4,3.86488366]
[1751994302872,5.79134028,2588.4,2587.8,3.86428626]
[1751994303058,5.79134028,2588.4,2587.8,3.5740873]
[1751994303256,0.8752283,2587.9,2587.8,9.7570873]
[1751994303503,0.8752283,2587.9,2587.8,3.5740873]
[1751994303678,0.0816283,2587.9,2587.8,4.21882993]
[1751994304363,0.0816283,2587.9,2587.8,4.2187594]
[1751994304559,0.8046,2588.6,2587.1,24.9312377]
[1751994304560,0.8046,2588.6,2587.3,0.284452]
[1751994304764,14.37842322,2589.1,2587.3,0.284452]
[1751994304765,14.37842322,2589.1,2587.7,1.71096243]
[1751994304766,0.0436019,2587.9,2587.7,1.71096243]
[1751994304959,0.8046,2587.8,2587.6,2.28078996]
[1751994305164,0.8046,2587.8,2587.7,1.71337363]
[1751994305360,0.8046,2587.8,2587.7,1.36009588]
[1751994305591,0.8482019,2587.8,2587.7,1.36009588]
[1751994305792,0.8482019,2587.8,2587.7,5.22453147]
[1751994306169,1e-08,2587.8,2587.7,27.20543131]
[1751994306369,1e-08,2587.8,2587.7,27.75543131]
[1751994306582,1e-08,2587.8,2587.7,36.98443275]
[1751994306897,0.0856503,2588.5,2588.4,3.86339051]
[1751994307099,0.0856503,2589.6,2588.4,10.10402441]
[1751994307100,0.807,2589.4,2588.4,10.10402441]
[1751994307300,0.0856503,2589.6,2589.5,3.86174937]
[1751994307506,0.0856503,2589.6,2589.5,3.90036686]
[1751994307709,0.0856503,2589.6,2589.5,10.11736686]
[1751994307890,1e-08,2589.6,2589.5,20.62874937]
[1751994308214,1e-08,2589.6,2589.5,16.94181447]
[1751994308359,1e-08,2589.6,2589.5,20.10274937]
[1751994308565,1e-08,2589.6,2589.5,20.65274937]
[1751994309308,1e-08,2589.6,2589.5,15.90193286]
[1751994309475,1e-08,2589.6,2589.5,7.94120377]
[1751994309675,1e-08,2589.6,2589.5,0.34827919]
[1751994309986,3.86174937,2589.5,2589.4,0.34827919]
[1751994310161,0.85168102,2589.5,2589.4,1.68849503]